bitfinex-derivatives/quotes_BTCF0:USTF0_20210111
["timestamp","ask_amount","ask_price","bid_price","bid_amount"]
[1610377574339,0.1099,33513.0,33497.0,0.09771]
[1610377574537,0.1099,33513.0,33489.0,0.09395]
[1610377574937,0.0905,33531.0,33489.0,0.09395]
[1610377575139,0.0903,33544.0,33489.0,0.09395]
[1610377575338,1.55443375,33560.0,33489.0,0.09395]
[1610377575538,1.25472665,33560.0,33489.0,0.09395]
[1610377575940,1.25472665,33560.0,33507.0,0.13632608]
[1610377576138,0.0881,33539.0,33489.0,0.09395]
[1610377576341,0.40697,33537.0,33489.0,0.09395]
[1610377577939,0.40697,33537.0,33507.0,0.13632608]
[1610377578941,0.40697,33537.0,33489.0,0.09395]
[1610377579541,0.40697,33537.0,33483.0,4.4752]
[1610377579943,0.40697,33537.0,33511.0,0.13632608]
[1610377580141,0.40697,33537.0,33488.0,0.11246]
[1610377581446,0.0899,33536.0,33488.0,0.11246]
[1610377581643,0.0901,33535.0,33488.0,0.11246]
[1610377582645,0.40697,33537.0,33521.0,0.13632608]
[1610377583446,0.40697,33537.0,33514.0,0.08811]
[1610377584648,0.40697,33537.0,33536.0,0.13632608]
[1610377584848,0.07777,33549.0,33536.0,0.13632608]
[1610377585249,0.07777,33549.0,33514.0,0.08811]
[1610377586651,0.07777,33549.0,33548.0,0.13632608]
[1610377587249,0.13632608,33558.0,33548.0,0.13632608]
[1610377587849,0.2731,33572.0,33521.0,0.08168]
[1610377588649,0.13632608,33568.0,33564.0,0.13632608]
[1610377588849,0.20835608,33568.0,33521.0,0.08168]
[1610377589051,0.07203,33568.0,33521.0,0.08168]
[1610377590254,0.09016,33576.0,33521.0,0.08168]
[1610377591255,0.09016,33576.0,33575.0,0.13632608]
[1610377591856,0.09016,33576.0,33555.0,0.10449]
[1610377592254,0.11026,33583.0,33555.0,0.10449]
[1610377593054,0.0883,33582.0,33546.0,0.06861]
[1610377593856,0.0883,33582.0,33554.0,0.13632608]
[1610377594056,0.0883,33582.0,33521.0,0.08168]
[1610377594255,0.0883,33582.0,33514.0,0.08811]
[1610377594461,0.0883,33582.0,33455.0,2.04656506]
[1610377594654,0.0883,33582.0,33487.0,0.0888]
[1610377594855,0.11026,33583.0,33487.0,0.0888]
[1610377595055,0.11026,33583.0,33487.0,0.16797]
[1610377595856,0.13632608,33573.0,33554.0,0.13632608]
[1610377596055,0.08994,33573.0,33487.0,0.07917]
[1610377596454,0.03,33569.0,33563.0,4.7567]
[1610377596654,0.03,33569.0,33487.0,0.07917]
[1610377597656,0.0882,33568.0,33487.0,0.07917]
[1610377597856,0.3707,33568.0,33541.0,0.13632608]
[1610377598058,0.2825,33568.0,33541.0,0.13632608]
[1610377598258,0.2825,33568.0,33518.0,0.08124]
[1610377598457,0.2825,33568.0,33526.0,0.10887]
[1610377599662,0.03,33569.0,33510.0,0.09082]
[1610377599861,0.13632608,33524.0,33505.0,0.13632608]
[1610377600060,0.23917608,33524.0,33487.0,0.07917]
[1610377600261,0.23917608,33524.0,33439.0,2.02733815]
[1610377600661,0.23917608,33524.0,33429.0,2.53417269]
[1610377600662,0.23917608,33524.0,33429.0,2.0300592]
[1610377600867,0.10285,33524.0,33429.0,2.0300592]
[1610377601062,0.10285,33524.0,33427.0,0.0897]
[1610377601864,0.10285,33524.0,33517.0,0.13632608]
[1610377602063,0.10285,33524.0,33492.0,0.07794]
[1610377602264,1.0,33519.0,33492.0,0.07794]
[1610377603164,1.0,33519.0,33411.0,2.20967578]
[1610377603165,1.0,33519.0,33411.0,2.12982439]
[1610377603363,1.0,33519.0,33411.0,2.04092439]
[1610377603564,1.0,33519.0,33408.0,0.0888]
[1610377603764,1.0,33519.0,33499.0,0.13632608]
[1610377603963,1.0,33519.0,33480.0,0.09361]
[1610377604164,0.1556,33523.0,33480.0,0.09361]
[1610377604564,0.0904,33522.0,33480.0,0.09361]
[1610377605564,0.0904,33522.0,33480.0,0.08501]
[1610377605965,4.8907,33517.0,33480.0,0.08501]
[1610377606167,0.0882,33516.0,33484.0,0.13632608]
[1610377607269,0.0907,33515.0,33484.0,0.13632608]
[1610377608270,0.0907,33515.0,33492.0,0.13632608]
[1610377608470,0.0907,33515.0,33471.0,0.07919]
[1610377609073,0.0907,33515.0,33471.0,0.06359]
[1610377609572,0.0907,33515.0,33459.0,3.7404]
[1610377610373,0.13632608,33460.0,33459.0,3.7404]
[1610377610572,0.10531,33479.0,33459.0,3.7404]
[1610377610773,4.76611,33479.0,33457.0,0.10818]
[1610377612676,4.76611,33479.0,33478.0,0.13632608]
[1610377612873,4.76611,33479.0,33457.0,0.10818]
[1610377613273,4.76611,33479.0,33418.0,3.8499]
[1610377614275,0.10531,33479.0,33443.0,4.5849]
[1610377614475,0.10531,33479.0,33443.0,4.68024]
[1610377615279,0.10531,33479.0,33474.0,0.13632608]
[1610377615475,0.19461,33479.0,33474.0,0.13632608]
[1610377616075,0.19461,33479.0,33459.0,0.07377]
[1610377617780,0.19461,33479.0,33450.0,0.13632608]
[1610377618178,0.19461,33479.0,33443.0,0.09534]
[1610377619578,0.19461,33479.0,33450.0,0.13632608]
[1610377620981,0.19461,33479.0,33447.0,0.06989]
[1610377621584,0.13632608,33448.0,33447.0,0.06989]
[1610377622384,0.13632608,33448.0,33446.0,0.13632608]
[1610377622785,0.0892,33448.0,33437.0,0.08435]
[1610377623185,0.0892,33448.0,33427.0,3.9406]
[1610377623387,0.20181,33448.0,33393.0,2.12371811]
[1610377623585,0.0885,33447.0,33391.0,2.12579274]
[1610377623985,0.0885,33447.0,33374.0,2.12627011]
[1610377624387,0.0885,33447.0,33368.0,2.12663089]
[1610377624787,0.0885,33447.0,33362.0,2.12698409]
[1610377625194,0.75134812,33446.0,33355.0,2.12732735]
[1610377625595,0.74973572,33440.0,33347.0,2.12510802]
[1610377625791,0.13632608,33390.0,33371.0,0.13632608]
[1610377626389,0.13632608,33390.0,33377.0,0.03]
[1610377626589,0.10898,33398.0,33377.0,0.03]
[1610377626789,0.10898,33398.0,33363.0,0.07823]
[1610377628191,0.10898,33398.0,33368.0,0.13632608]
[1610377628589,0.5339,33393.0,33363.0,0.07823]
[1610377630191,4.6075,33420.0,33392.0,0.13632608]
[1610377630392,0.09869,33421.0,33392.0,0.22420608]
[1610377631391,0.09869,33421.0,33393.0,0.02]
[1610377632191,0.23501608,33421.0,33420.0,0.13632608]
[1610377632390,0.23501608,33421.0,33402.0,0.08876]
[1610377633091,0.23501608,33421.0,33402.0,0.08486]
[1610377633292,0.23501608,33421.0,33402.0,6e-05]
[1610377633492,0.23501608,33421.0,33393.0,0.02]
[1610377633691,0.23501608,33421.0,33367.0,4.0681]
[1610377634291,0.13632608,33413.0,33399.0,0.13632608]
[1610377634500,0.10149,33413.0,33399.0,0.13632608]
[1610377634907,0.01489,33413.0,33399.0,0.13632608]
[1610377635112,0.00818,33421.0,33399.0,0.13632608]
[1610377635300,0.04802905,36743.0,33368.0,1.5]
[1610377635301,4.5729,33468.0,33398.0,4.4189]
[1610377635512,0.2732,33439.0,33399.0,0.0984]
[1610377635896,0.2732,33439.0,33421.0,0.0023]
[1610377636098,0.2732,33439.0,33421.0,0.08287]
[1610377636298,0.2732,33439.0,33438.0,0.13632608]
[1610377637097,0.2732,33439.0,33421.0,0.08287]
[1610377637911,0.0886,33438.0,33421.0,0.08287]
[1610377638314,0.13632608,33422.0,33421.0,0.0023]
[1610377638500,0.21943608,33422.0,33397.0,0.13632608]
[1610377639100,0.21943608,33422.0,33380.0,3.4252]
[1610377639499,0.31033608,33422.0,33380.0,3.4252]
[1610377640301,0.13632608,33387.0,33380.0,3.56152608]
[1610377640701,0.09406,33401.0,33380.0,3.56152608]
[1610377640924,0.09406,33401.0,33380.0,3.64287608]
[1610377641504,0.08311,33422.0,33380.0,3.64287608]
[1610377642402,0.13632608,33407.0,33404.0,0.13632608]
[1610377642802,0.13632608,33407.0,33380.0,3.50655]
[1610377643502,0.13632608,33407.0,33380.0,0.08135]
[1610377643704,0.0893,33406.0,33380.0,0.08135]
[1610377644304,0.0893,33406.0,33393.0,0.13632608]
[1610377644703,0.0893,33406.0,33380.0,0.08135]
[1610377644904,0.0893,33406.0,33364.0,4.525]
[1610377645904,3.5658,33404.0,33349.0,4.8479]
[1610377646105,3.65087,33404.0,33349.0,4.8479]
[1610377646308,0.13632608,33376.0,33360.0,0.13632608]
[1610377646506,0.08157,33376.0,33360.0,0.13632608]
[1610377647506,0.08157,33376.0,33349.0,4.8479]
[1610377648208,0.17067,33376.0,33349.0,4.8479]
[1610377649409,0.08157,33376.0,33375.0,0.13632608]
[1610377649608,0.09341,33385.0,33375.0,0.13632608]
[1610377649808,3.65087,33404.0,33375.0,0.13632608]
[1610377650010,3.5658,33404.0,33375.0,0.13632608]
[1610377650409,0.3179,33457.0,33375.0,0.13632608]
[1610377650609,0.2464,33410.0,33376.0,0.09]
[1610377650810,0.166,33410.0,33376.0,0.17293]
[1610377651009,0.0766,33410.0,33386.0,4.4295]
[1610377651209,0.3179,33457.0,33386.0,4.52195]
[1610377651826,0.13632608,33475.0,33448.0,0.13632608]
[1610377652220,0.13632608,33475.0,33448.0,0.23730608]
[1610377652408,0.1556,33497.0,33448.0,0.23730608]
[1610377653225,0.1556,33497.0,33448.0,0.10098]
[1610377654218,0.13632608,33459.0,33457.0,0.13632608]
[1610377654827,0.09968,33470.0,33457.0,0.13632608]
[1610377655010,0.11209,33485.0,33457.0,0.20794608]
[1610377655210,0.11209,33485.0,33457.0,0.07162]
[1610377655412,0.2795,33482.0,33457.0,0.07162]
[1610377655616,1.0,33487.0,33457.0,0.07162]
[1610377656213,0.3179,33511.0,33457.0,0.07162]
[1610377656411,0.3179,33511.0,33486.0,0.13632608]
[1610377656615,0.3179,33511.0,33486.0,0.09635]
[1610377658412,0.7884,33507.0,33486.0,0.09635]
[1610377658616,0.7884,33507.0,33474.0,0.07494]
[1610377658823,0.78225,33507.0,33474.0,0.07494]
[1610377659012,0.78225,33507.0,33448.0,0.10098]
[1610377659216,0.78225,33507.0,33439.0,0.09388]
[1610377659417,0.78225,33507.0,33414.0,2.0947414]
[1610377659820,0.78225,33507.0,33419.0,2.09353503]
[1610377660013,0.78225,33507.0,33420.0,0.0896]
[1610377660213,0.78225,33507.0,33421.0,2.09381064]
[1610377660412,0.6993,33507.0,33421.0,2.09381064]
[1610377660614,0.6993,33507.0,33506.0,0.13632608]
[1610377661715,0.6993,33507.0,33492.0,0.09666]
[1610377662342,0.07666,33511.0,33434.0,2.07700805]
[1610377662527,0.07666,33511.0,33432.0,2.07231516]
[1610377662730,0.07666,33511.0,33434.0,0.09605]
[1610377662924,0.0887,33510.0,33434.0,0.09605]
[1610377663936,0.07666,33511.0,33434.0,0.09605]
[1610377664921,0.0889,33510.0,33481.0,0.13632608]
[1610377665120,0.0889,33510.0,33434.0,0.09605]
[1610377667124,0.0889,33510.0,33495.0,0.13632608]
[1610377667324,0.0889,33510.0,33478.0,0.07978]
[1610377669430,0.0889,33510.0,33434.0,0.09605]
[1610377669628,0.0889,33510.0,33426.0,2.09554757]
[1610377669828,0.0889,33510.0,33422.0,2.1060589]
[1610377670228,0.0889,33510.0,33419.0,2.39391381]
[1610377670229,0.0889,33510.0,33419.0,0.11235]
[1610377670429,0.0889,33510.0,33412.0,2.11415941]
[1610377670629,0.0889,33510.0,33406.0,2.11442916]
[1610377670630,0.87514699,33507.0,33406.0,2.11442916]
[1610377670829,1.5889,33506.0,33406.0,2.11442916]
[1610377671029,0.87082179,33498.0,33396.0,2.11499123]
[1610377671229,1.5,33497.0,33396.0,2.11499123]
[1610377671430,0.86806168,33488.0,33386.0,2.11580794]
[1610377671630,1.5,33487.0,33386.0,2.11580794]
[1610377671830,1.5,33487.0,33378.0,2.11625294]
[1610377671831,0.86611643,33480.0,33378.0,2.11625294]
[1610377672032,0.94097643,33480.0,33378.0,2.11625294]
[1610377672230,1.15314453,33479.0,33377.0,2.11669085]
[1610377672630,0.2871,33479.0,33380.0,2.11673676]
[1610377672831,0.2871,33479.0,33380.0,2.22089676]
[1610377673032,0.3766,33479.0,33382.0,2.11651367]
[1610377673234,0.3766,33479.0,33383.0,2.11637901]
[1610377673633,0.3766,33479.0,33385.0,2.11646405]
[1610377673842,0.3766,33479.0,33386.0,0.0904]
[1610377674033,0.3766,33479.0,33391.0,2.11639438]
[1610377674233,0.3766,33479.0,33391.0,2.20771438]
[1610377674434,1.5,33478.0,33391.0,0.09132]
[1610377675438,0.86315404,33470.0,33391.0,0.09132]
[1610377675635,1.5,33469.0,33391.0,0.09132]
[1610377675838,0.86172864,33464.0,33391.0,0.09132]
[1610377676035,2.46338723,33463.0,33391.0,0.09132]
[1610377676237,1.0,33427.0,33391.0,0.09132]
[1610377677038,1.5909,33426.0,33391.0,0.09132]
[1610377677240,0.13632608,33392.0,33380.0,0.10416]
[1610377677438,0.13632608,33392.0,33369.0,0.13632608]
[1610377677638,0.13632608,33392.0,33337.0,2.12008847]
[1610377678040,0.13632608,33392.0,33331.0,2.12035389]
[1610377678240,0.2954,33403.0,33331.0,2.12035389]
[1610377678442,0.2954,33403.0,33332.0,2.1195437]
[1610377678642,0.02,33391.0,33333.0,1.5]
[1610377678841,0.02,33391.0,33339.0,2.11923253]
[1610377679043,0.02,33391.0,33340.0,1.5]
[1610377679243,0.02,33391.0,33341.0,2.11867353]
[1610377679643,0.02,33391.0,33350.0,2.11821677]
[1610377679844,0.02,33391.0,33350.0,2.22271677]
[1610377680044,0.02,33391.0,33351.0,1.5]
[1610377680243,0.02,33391.0,33390.0,0.13632608]
[1610377680444,0.02,33391.0,33390.0,0.21441608]
[1610377681645,0.02,33391.0,33390.0,0.07809]
[1610377682244,0.02,33391.0,33390.0,0.21441608]
[1610377682645,0.02,33391.0,33390.0,0.07809]
[1610377684248,0.15632608,33391.0,33390.0,0.07809]
[1610377684448,0.15632608,33391.0,33379.0,0.07858]
[1610377684848,0.02,33390.0,33379.0,0.07858]
[1610377685050,0.02,33390.0,33379.0,0.01788]
[1610377685248,0.02,33390.0,33379.0,8e-05]
[1610377685448,1.52,33390.0,33339.0,0.08743]
[1610377685648,1.52,33390.0,33331.0,0.09257]
[1610377685849,1.52,33390.0,29371.0,0.08167318]
[1610377685850,1.52,33390.0,33310.0,2.11984158]
[1610377686050,1.52,33390.0,33306.0,2.12027249]
[1610377686249,0.02,33390.0,33338.0,0.13632608]
[1610377686460,0.2862,33389.0,33338.0,0.13632608]
[1610377686849,0.2862,33389.0,33334.0,0.07958]
[1610377687449,1.7862,33389.0,33334.0,0.07958]
[1610377687949,1.7862,33389.0,33334.0,0.05358]
[1610377688150,1.7862,33389.0,33334.0,0.01578]
[1610377688350,1.0,33362.0,33305.0,3.811]
[1610377688551,1.07648,33362.0,33324.0,0.13632608]
[1610377688749,1.07648,33362.0,33324.0,0.22455608]
[1610377688950,1.07648,33362.0,33324.0,0.08823]
[1610377689150,0.0197,33334.0,33324.0,0.08823]
[1610377689551,0.0908,33333.0,33324.0,0.07083]
[1610377689750,0.12394,33334.0,33305.0,3.811]
[1610377689952,0.12394,33334.0,33305.0,3.92364]
[1610377690154,0.12394,33334.0,33305.0,0.04394]
[1610377690355,0.12394,33334.0,33305.0,0.02474]
[1610377690554,3.91412608,33306.0,33297.0,0.07513]
[1610377690952,3.98915608,33306.0,33297.0,0.07513]
[1610377691552,3.98915608,33306.0,33279.0,0.2982]
[1610377692152,3.7778,33306.0,33279.0,0.2982]
[1610377692553,3.9862,33309.0,33305.0,0.13632608]
[1610377692753,3.9862,33309.0,33305.0,0.23239608]
[1610377693553,3.9862,33309.0,33305.0,0.09607]
[1610377693953,3.9862,33309.0,33298.0,0.07281]
[1610377694554,3.9862,33309.0,33299.0,0.13632608]
[1610377695153,3.4597,33321.0,33299.0,0.11033]
[1610377696857,3.4597,33321.0,33320.0,0.13632608]
[1610377697057,3.4597,33321.0,33316.0,0.10811]
[1610377697458,0.13632608,33332.0,33316.0,0.10811]
[1610377697657,0.13632608,33332.0,33316.0,0.04741]
[1610377697858,0.0889,33331.0,33316.0,0.04741]
[1610377698059,0.0889,33331.0,33288.0,0.0956]
[1610377698857,0.0889,33331.0,33312.0,0.13632608]
[1610377699456,0.0889,33331.0,33301.0,0.1126]
[1610377699860,3.7509,33329.0,33301.0,0.1126]
[1610377700058,3.7509,33329.0,33288.0,0.0956]
[1610377700259,1.0,33328.0,33273.0,4.7153]
[1610377700859,1.0,33328.0,33295.0,0.13632608]
[1610377701460,0.0906,33327.0,33295.0,0.13632608]
[1610377701660,0.16853,33327.0,33295.0,0.13632608]
[1610377702462,0.16853,33327.0,33281.0,0.0943]
[1610377702862,0.16853,33327.0,33295.0,0.13632608]
[1610377703064,0.16853,33327.0,33295.0,0.21253608]
[1610377703263,0.07793,33327.0,33295.0,0.21253608]
[1610377704263,0.16753,33327.0,33295.0,0.21253608]
[1610377704664,0.0896,33327.0,33295.0,0.21253608]
[1610377705065,0.0896,33327.0,33319.0,0.13632608]
[1610377705266,0.0896,33327.0,33313.0,0.11026]
[1610377706566,3.7509,33329.0,33313.0,0.11026]
[1610377706967,3.7509,33329.0,33328.0,0.13632608]
[1610377709370,0.15992608,33334.0,33326.0,0.07987]
[1610377710471,0.0236,33334.0,33326.0,0.07987]
[1610377710670,0.0236,33334.0,33313.0,0.11026]
[1610377711073,0.10053,33334.0,33323.0,0.13632608]
[1610377711273,0.10053,33334.0,33312.0,0.08816]
[1610377712274,6.0,33313.0,33282.0,0.2731]
[1610377712474,6.11357,33313.0,33282.0,0.2731]
[1610377712875,6.11357,33313.0,33215.0,0.0889]
[1610377713074,6.11357,33313.0,33203.0,2.06035197]
[1610377713274,6.11357,33313.0,33203.0,0.0899]
[1610377713474,0.0906,33312.0,33193.0,0.0906]
[1610377713875,0.13632608,33259.0,33257.0,0.13632608]
[1610377714076,0.07079,33265.0,33257.0,0.13632608]
[1610377714476,0.07079,33265.0,33257.0,0.24586608]
[1610377715077,0.0896,33300.0,33257.0,0.24586608]
[1610377716077,0.0896,33300.0,33257.0,0.10954]
[1610377716280,0.11357,33313.0,33257.0,0.10954]
[1610377716480,0.13632608,33295.0,33287.0,0.13632608]
[1610377717380,0.07071,33296.0,33257.0,0.10954]
[1610377718481,0.07071,33296.0,33278.0,0.13632608]
[1610377720283,0.07071,33296.0,33266.0,0.10649]
[1610377720484,0.13632608,33270.0,33266.0,0.10649]
[1610377720884,0.13632608,33270.0,33245.0,0.09112]
[1610377721083,0.13632608,33270.0,33198.0,2.06282633]
[1610377721285,0.08748,33274.0,33190.0,2.06311431]
[1610377721486,0.08748,33274.0,33190.0,2.17016431]
[1610377721684,0.08748,33274.0,33190.0,0.10705]
[1610377721885,0.17728,33274.0,33190.0,0.10705]
[1610377722486,0.17728,33274.0,33264.0,0.13632608]
[1610377722685,0.17728,33274.0,33247.0,0.07847]
[1610377723687,0.17728,33274.0,33190.0,0.10705]
[1610377724290,1.0,33252.0,33190.0,0.10705]
[1610377724491,0.13632608,33226.0,33223.0,0.13632608]
[1610377725090,0.13632608,33226.0,33190.0,0.10705]
[1610377726491,0.13632608,33226.0,33173.0,0.2768]
[1610377726692,0.13632608,33217.0,33200.0,0.13632608]
[1610377727091,0.13632608,33217.0,33173.0,0.2768]
[1610377727890,0.03,33210.0,33173.0,0.2768]
[1610377728692,0.03,33210.0,33206.0,0.13632608]
[1610377728890,0.03,33210.0,33206.0,0.09584]
[1610377730093,3.5456,33228.0,33206.0,0.09584]
[1610377731394,3.5456,33228.0,33227.0,0.13632608]
[1610377731594,3.5456,33228.0,33227.0,0.09381]
[1610377732495,3.5456,33228.0,33213.0,0.07722]
[1610377733298,3.5456,33228.0,33213.0,0.05722]
[1610377733495,3.5456,33228.0,33220.0,0.13632608]
[1610377733695,3.5456,33228.0,33220.0,0.22205608]
[1610377735295,3.5456,33228.0,33220.0,0.21205608]
[1610377735695,3.5456,33228.0,33227.0,0.13632608]
[1610377735896,3.5456,33228.0,33227.0,0.1119]
[1610377736997,3.5456,33228.0,33213.0,0.05722]
[1610377737397,0.08292,33228.0,33206.0,0.09584]
[1610377737597,0.08292,33228.0,33207.0,0.13632608]
[1610377737798,0.01,33213.0,33207.0,0.13632608]
[1610377737997,0.01,33213.0,33202.0,0.08706]
[1610377738899,0.02,33213.0,33202.0,0.06026]
[1610377739100,0.12977,33213.0,33194.0,4.6309]
[1610377739702,0.13632608,33195.0,33173.0,0.2768]
[1610377739902,3.7809,33190.0,33168.0,0.13632608]
[1610377741503,3.7809,33190.0,33136.0,4.3232]
[1610377742103,3.7809,33190.0,33189.0,0.13632608]
[1610377742303,3.7809,33190.0,33189.0,0.23305608]
[1610377742705,0.02,33213.0,33189.0,0.23305608]
[1610377744106,0.13632608,33190.0,33189.0,0.09673]
[1610377744306,0.13632608,33190.0,33155.0,0.2998]
[1610377744706,0.09102,33203.0,33155.0,0.2998]
[1610377744907,0.09102,33203.0,33155.0,0.3779]
[1610377746308,0.13632608,33188.0,33155.0,0.3779]
[1610377746709,0.08711,33200.0,33155.0,0.3779]
[1610377746914,4.3783,33190.0,33155.0,0.3779]
[1610377748410,0.13632608,33156.0,33155.0,0.3779]
[1610377750914,0.13632608,33156.0,33155.0,0.2998]
[1610377751624,1.0,33161.0,33155.0,0.2998]
[1610377752019,1.0,33161.0,33155.0,0.37577]
[1610377752419,0.13632608,33156.0,33155.0,0.37577]
[1610377752720,0.10412,33179.0,33155.0,0.37577]
[1610377754120,0.10412,33179.0,33155.0,0.2998]
[1610377754322,1.0,33161.0,33155.0,0.2998]
[1610377754924,0.13632608,33156.0,33155.0,0.2998]
[1610377755824,1.0,33161.0,33155.0,0.2998]
[1610377756224,0.5844,33156.0,33155.0,0.2998]
[1610377757023,0.72072608,33156.0,33155.0,0.2998]
[1610377757825,0.5844,33156.0,33155.0,0.2998]
[1610377759028,0.72072608,33156.0,33155.0,0.2998]
[1610377759527,0.81092608,33156.0,33155.0,0.2998]
[1610377759728,0.6746,33156.0,33155.0,0.2998]
[1610377759929,0.6746,33156.0,33119.0,4.8945]
[1610377760128,0.6746,33156.0,33119.0,4.8677]
[1610377760329,0.0902,33156.0,33067.0,2.09460588]
[1610377760729,0.0902,33156.0,33064.0,0.0895]
[1610377761731,0.10678,33161.0,33148.0,0.13632608]
[1610377761931,0.10678,33161.0,33143.0,0.08918]
[1610377762129,0.10877,33186.0,33143.0,0.08918]
[1610377762332,1.0,33185.0,33143.0,0.08918]
[1610377762730,1.0,33185.0,33136.0,0.09709]
[1610377762929,1.0,33185.0,33143.0,0.07005]
[1610377763329,1.0,33185.0,33143.0,0.03055]
[1610377763730,0.13632608,33144.0,33136.0,0.03594]
[1610377763933,0.13632608,33144.0,33060.0,0.0913]
[1610377764131,0.24311608,33144.0,33060.0,0.0913]
[1610377764332,0.24311608,33144.0,33057.0,2.09105043]
[1610377764532,0.10679,33144.0,33057.0,2.09105043]
[1610377764733,0.10679,33144.0,33048.0,2.09093504]
[1610377765133,0.10679,33144.0,33035.0,2.78791339]
[1610377765134,0.0896,33143.0,33042.0,2.09103529]
[1610377765333,3.8946,33137.0,33042.0,2.09103529]
[1610377765533,3.8946,33137.0,33039.0,6.23818824]
[1610377765534,3.8946,33137.0,33040.0,2.09058338]
[1610377765733,3.98538,33137.0,33040.0,2.09058338]
[1610377765934,3.98538,33137.0,33039.0,3.9729]
[1610377766135,0.13632608,33088.0,33087.0,0.13632608]
[1610377766335,0.13632608,33088.0,33056.0,0.0896]
[1610377766735,0.13632608,33088.0,33040.0,0.1812]
[1610377767136,0.0901,33099.0,33040.0,5.096]
[1610377767337,0.0901,33099.0,33040.0,5.16653]
[1610377767538,0.0901,33099.0,33040.0,4.98533]
[1610377768438,0.0901,33099.0,33041.0,0.0902]
[1610377770843,0.0901,33099.0,33093.0,0.13632608]
[1610377771041,0.0901,33099.0,33086.0,0.08453]
[1610377773343,0.0901,33099.0,29641.0,0.08030944]
[1610377773544,0.0901,33099.0,33018.0,2.09363017]
[1610377773744,0.0901,33099.0,33088.0,0.13632608]
[1610377774344,0.0901,33099.0,33086.0,0.10543]
[1610377776047,0.13632608,33089.0,33086.0,0.10543]
[1610377776249,0.10674,33113.0,33086.0,0.10543]
[1610377776448,0.03,33098.0,33086.0,0.10543]
[1610377777050,0.03,33098.0,33086.0,0.09853]
[1610377777451,0.03,33098.0,33063.0,0.2738]
[1610377778051,0.13632608,33080.0,33063.0,0.2738]
[1610377778453,0.10435,33091.0,33063.0,0.2738]
[1610377778654,0.10435,33091.0,33064.0,0.0906]
[1610377778854,0.10435,33091.0,33063.0,0.35609]
[1610377779055,0.10435,33091.0,33063.0,0.32529]
[1610377780056,0.13632608,33074.0,33073.0,0.13632608]
[1610377780257,0.13632608,33074.0,33063.0,0.32529]
[1610377781259,0.22682608,33074.0,33063.0,0.32529]
[1610377781658,0.0905,33074.0,33063.0,0.32529]
[1610377782259,0.0905,33074.0,33068.0,0.13632608]
[1610377784161,0.0905,33074.0,33072.0,0.13632608]
[1610377784562,0.0905,33074.0,33072.0,0.23609608]
[1610377785164,0.0905,33074.0,33072.0,0.09977]
[1610377785365,0.0905,33074.0,33072.0,0.01107]
[1610377785563,0.0905,33074.0,33040.0,0.07053]
[1610377785764,0.0905,33074.0,33056.0,0.07857]
[1610377786265,0.13632608,33057.0,33056.0,0.07857]
[1610377787467,0.22792608,33057.0,33056.0,7e-05]
[1610377787668,0.22792608,33057.0,33032.0,4.9024]
[1610377788268,0.0916,33057.0,33039.0,0.13632608]
[1610377788468,0.0916,33057.0,33039.0,0.24752608]
[1610377788868,0.0911,33056.0,33039.0,0.24752608]
[1610377789067,0.0911,33056.0,33039.0,0.1112]
[1610377790179,0.13632608,33040.0,33039.0,0.1112]
[1610377790970,0.0911,33056.0,33039.0,0.1112]
[1610377791371,0.69746994,33112.0,33039.0,0.1112]
[1610377791569,0.0912,33095.0,33039.0,0.1112]
[1610377791769,0.19708,33070.0,33039.0,0.1112]
[1610377792272,0.13632608,33050.0,33049.0,0.13632608]
[1610377792470,0.22712608,33050.0,33049.0,0.13632608]
[1610377793072,0.22712608,33050.0,33039.0,0.1112]
[1610377793671,0.22712608,33050.0,33032.0,4.9024]
[1610377793869,0.22712608,33050.0,33007.0,0.2841]
[1610377794271,0.0908,33050.0,33040.0,0.13632608]
[1610377794869,0.0908,33050.0,33033.0,0.08818]
[1610377795073,0.0908,33050.0,33040.0,0.09478]
[1610377796281,0.13632608,33043.0,33040.0,0.09478]
[1610377797373,0.0898,33042.0,33040.0,0.09478]
[1610377798175,0.0898,33042.0,33033.0,0.08818]
[1610377798373,0.13632608,33034.0,33032.0,0.13632608]
[1610377799173,0.0898,33042.0,33032.0,0.13632608]
[1610377799373,0.0898,33042.0,33032.0,0.07321]
[1610377799972,0.0898,33042.0,33032.0,1e-05]
[1610377800373,0.13632608,33033.0,33007.0,0.2841]
[1610377800575,0.23795608,33033.0,33007.0,0.2841]
[1610377801375,0.23795608,33033.0,32965.0,0.2961]
[1610377801575,0.23795608,33033.0,32966.0,0.2752]
[1610377801773,0.23795608,33033.0,32966.0,0.36007]
[1610377802274,0.13632608,32996.0,32986.0,0.13632608]
[1610377802673,0.10831,32999.0,32966.0,0.36007]
[1610377803674,0.10163,33033.0,32966.0,0.36007]
[1610377804274,0.13632608,33009.0,32994.0,0.13632608]
[1610377804474,0.21218608,33009.0,32994.0,0.13632608]
[1610377808878,0.21218608,33009.0,32966.0,0.36007]
[1610377809781,0.091,33008.0,32966.0,0.36007]
[1610377810180,0.07586,33009.0,32966.0,0.36007]
[1610377810380,0.13632608,32996.0,32989.0,0.13632608]
[1610377810582,0.07358,32996.0,32989.0,0.13632608]
[1610377811681,0.07508,33005.0,32989.0,0.13632608]
[1610377812283,0.07508,33005.0,33004.0,0.13632608]
[1610377815786,4.4754,33045.0,33004.0,0.13632608]
[1610377815988,0.091,33048.0,33004.0,0.13632608]
[1610377816385,0.13632608,33021.0,33004.0,0.13632608]
[1610377816586,0.21825608,33021.0,33004.0,0.13632608]
[1610377817389,0.08193,33021.0,33004.0,0.13632608]
[1610377817787,0.09744,33031.0,33004.0,0.13632608]
[1610377817986,0.09744,33031.0,33004.0,0.21165608]
[1610377818187,0.09744,33031.0,33004.0,0.07533]
[1610377818591,0.09744,33031.0,33030.0,0.13632608]
[1610377819188,0.3179,33067.0,33030.0,0.13632608]